bitfinex-derivatives/quotes_ETHF0:USTF0_20260315
["timestamp","ask_amount","ask_price","bid_price","bid_amount"]
[1773539962781,0.54694181,2089.2,2088.6,0.59670494]
[1773539963079,0.54694181,2089.2,2088.7,3.85929852]
[1773539963473,0.54694181,2089.2,2088.8,0.59194502]
[1773539968089,0.54694181,2089.2,2088.9,3.2673535]
[1773539968290,0.54694181,2089.2,2088.8,0.59194502]
[1773539969192,0.54694181,2089.2,2088.6,0.59670494]
[1773539973797,0.54199844,2089.1,2088.6,0.59670494]
[1773539981605,0.54199844,2089.0,2088.6,0.59670494]
[1773539985801,0.54199844,2088.8,2088.4,0.59194502]
[1773539986908,0.54199844,2088.8,2088.4,0.5978579]
[1773539987105,0.54199844,2088.4,2088.0,0.57112642]
[1773539988007,0.54612919,2088.4,2088.0,0.57692436]
[1773539989209,0.00413075,2088.4,2088.0,0.57692436]
[1773539989501,0.54199844,2088.9,2088.0,0.57692436]
[1773539989809,10.62999844,2089.0,2088.2,0.57825075]
[1773539990309,0.5825349,2088.9,2088.2,0.57825075]
[1773539990512,0.58829035,2088.9,2088.2,0.57825075]
[1773539990913,0.00575545,2088.9,2088.2,0.57825075]
[1773539993008,0.00575545,2088.9,2088.4,0.55524116]
[1773539993209,0.62148144,2088.9,2088.4,0.55524116]
[1773539996407,0.62148144,2088.9,2088.3,40.8]
[1773539996614,0.61572599,2088.8,2088.2,0.52139478]
[1773539996810,0.61572599,2088.6,2088.1,0.52692308]
[1773539997118,0.61572599,2088.6,2088.0,0.53272102]
[1773539999022,0.61572599,2088.6,2088.0,0.54397692]
[1773540001116,0.61572599,2088.8,2088.1,0.52710874]
[1773540001614,0.00575545,2088.9,2088.5,0.5230773]
[1773540001821,0.61572599,2089.2,2088.5,0.5230773]
[1773540002412,6.31079544,2089.4,2088.6,1.83345481]
[1773540002611,0.61572599,2089.6,2088.7,0.50194806]
[1773540002842,0.61572599,2089.6,2089.1,0.50397197]
[1773540002843,0.00364939,2089.6,2089.1,0.50397197]
[1773540003017,0.61572599,2089.8,2089.1,0.50397197]
[1773540003216,0.61572599,2089.6,2089.1,0.50397197]
[1773540004022,0.6203479,2089.6,2089.1,0.50397197]
[1773540015929,0.61572599,2090.2,2089.2,0.47469097]
[1773540016229,0.61572599,2090.0,2089.2,0.47469097]
[1773540016428,0.61572599,2090.0,2089.3,0.47469097]
[1773540016824,0.62137742,2090.0,2089.3,0.47469097]
[1773540025341,0.62137742,2090.0,2089.4,0.45592383]
[1773540026644,0.00565143,2090.0,2089.6,0.4559395]
[1773540026841,0.00565143,2090.0,2089.6,0.4593412]
[1773540027242,0.58023811,2090.6,2089.6,0.4593412]
[1773540027446,0.58023811,2090.5,2089.6,0.4593412]
[1773540028241,0.58422494,2090.5,2089.6,0.4593412]
[1773540028441,0.58023811,2090.4,2089.6,0.4593412]
[1773540031342,0.58023811,2090.3,2089.6,0.4593412]
[1773540036239,0.58023811,2090.3,2089.8,0.54472684]
[1773540040952,0.58023811,2090.3,2089.7,0.54472684]
[1773540041253,0.58023811,2090.2,2089.6,0.54812854]
[1773540047859,0.58023811,2090.2,2089.6,0.0034017]
[1773540048562,0.58023811,2090.2,2089.6,0.54812854]
[1773540049053,0.58023811,2090.2,2089.6,0.0034017]
[1773540049561,0.58023811,2090.2,2089.6,0.54812854]
[1773540050456,0.56422479,2090.4,2089.6,0.54812854]
[1773540054460,3.82681071,2091.0,2090.1,0.55466029]
[1773540054657,0.5931472,2091.4,2090.7,0.55466029]
[1773540054860,0.5931472,2091.6,2090.9,0.55466029]
[1773540055057,0.5931472,2092.0,2091.1,0.55466029]
[1773540055261,0.5931472,2091.9,2091.1,0.55466029]
[1773540055456,0.59665351,2091.9,2091.1,0.55998925]
[1773540055657,0.59665351,2091.9,2091.1,0.00532896]
[1773540055857,0.5931472,2091.6,2090.7,0.55466029]
[1773540056167,0.5931472,2091.6,2090.7,41.35466029]
[1773540056363,0.5931472,2091.6,2090.7,0.55466029]
[1773540056665,0.5931472,2091.6,2090.4,0.55466029]
[1773540056863,0.5931472,2091.6,2090.6,0.55466029]
[1773540057265,0.5931472,2091.5,2090.6,0.55466029]
[1773540058065,0.5931472,2091.5,2090.5,40.8]
[1773540058265,0.5931472,2091.5,2090.5,41.35466029]
[1773540058666,0.5931472,2091.5,2090.6,0.55466029]
[1773540061361,0.5931472,2091.7,2090.6,0.55466029]
[1773540062970,0.5931472,2091.7,2090.7,0.55466029]
[1773540070176,0.59665351,2091.9,2090.9,0.55466029]
[1773540073375,0.59665351,2091.9,2091.1,0.55466029]
[1773540073573,0.00350631,2091.9,2091.1,0.55466029]
[1773540073878,0.59665351,2091.9,2091.1,0.55466029]
[1773540077478,0.5931472,2092.7,2091.5,0.55466029]
[1773540077981,0.5931472,2092.7,2091.7,0.55466029]
[1773540078476,0.59684637,2092.7,2091.7,0.55466029]
[1773540078881,13.40720106,2093.8,2091.7,0.55466029]
[1773540078882,0.5931472,2092.8,2091.7,0.55466029]
[1773540079081,0.5931472,2092.8,2091.8,0.55466029]
[1773540079982,0.59892933,2092.8,2091.8,0.55466029]
[1773540081883,0.59892933,2092.8,2091.7,0.56280006]
[1773540089485,0.59892933,2092.8,2091.8,0.56280006]
[1773540089886,0.59892933,2092.8,2091.9,0.56280006]
[1773540090081,0.00578213,2092.8,2091.9,0.56854485]
[1773540090577,0.00578213,2092.8,2092.0,0.56280006]
[1773540090780,0.53791546,2093.0,2092.1,0.56280006]
[1773540090980,0.53791546,2093.7,2092.1,0.56280006]
[1773540091187,0.53791546,2093.7,2092.3,0.56280006]
[1773540091685,0.53791546,2093.7,2092.4,0.56280006]
[1773540091885,0.54245944,2093.7,2092.4,0.56280006]
[1773540096987,0.54245944,2093.7,2092.6,0.56280006]
[1773540097189,0.54245944,2093.7,2092.7,0.56280006]
[1773540097686,0.54245944,2093.7,2092.9,0.56280006]
[1773540101186,6.01338569,2095.0,2093.6,0.56280006]
[1773540101487,0.53791546,2095.0,2093.8,0.56280006]
[1773540102193,0.54147512,2095.0,2093.8,0.56698858]
[1773540102984,0.54147512,2095.0,2094.0,0.56280006]
[1773540106696,0.00355966,2095.0,2094.0,0.56280006]
[1773540107192,0.54147512,2095.0,2094.0,0.56280006]
[1773540107589,0.54147512,2095.0,2094.1,0.56280006]
[1773540107992,0.00355966,2095.0,2094.1,0.56280006]
[1773540108591,0.00355966,2095.0,2094.3,0.56280006]
[1773540108895,0.54147512,2095.0,2094.3,0.56280006]
[1773540109993,0.54147512,2095.0,2094.1,0.53981538]
[1773540110593,0.54147512,2095.0,2094.3,0.53981538]
[1773540111892,0.87441653,2095.4,2094.3,0.53981538]
[1773540112090,0.87441653,2095.4,2094.5,0.57408923]
[1773540112299,0.87441653,2095.4,2094.6,0.57408923]
[1773540112799,0.87822823,2095.4,2094.6,0.57408923]
[1773540112997,0.34695601,2096.5,2094.6,0.57408923]
[1773540112998,0.56968652,2095.8,2094.6,0.57408923]
[1773540114000,0.57431321,2095.8,2094.6,0.57408923]
[1773540115191,2.90400245,2096.8,2094.6,0.57408923]
[1773540115192,0.56968652,2096.1,2094.9,0.57408923]
[1773540115393,0.91890956,2096.5,2095.7,0.57408923]
[1773540115700,0.56968652,2097.4,2095.8,0.57408923]
[1773540116098,0.56968652,2097.4,2096.0,0.57408923]
[1773540116599,0.57543264,2097.4,2096.0,0.57900667]
[1773540118501,0.56968652,2097.2,2096.0,0.00491744]
[1773540118702,0.56968652,2097.0,2096.0,0.00491744]
[1773540118901,0.56968652,2097.0,2095.6,0.57408923]
[1773540119101,0.56968652,2096.8,2095.6,0.57408923]
[1773540119402,0.56968652,2096.8,2095.7,41.37408923]
[1773540119599,0.56968652,2096.8,2095.7,40.8]
[1773540119901,0.56968652,2096.8,2095.7,0.00550864]
[1773540120898,0.56968652,2096.8,2095.7,0.57959787]
[1773540121406,0.56968652,2096.8,2095.8,0.57408923]
[1773540121696,0.00574612,2097.4,2095.8,0.57408923]
[1773540121697,0.56968652,2097.3,2095.8,0.57408923]
[1773540121901,0.56968652,2097.3,2096.0,0.57408923]
[1773540123197,0.56968652,2097.3,2095.8,0.57408923]
[1773540123394,0.56968652,2097.1,2095.8,0.57408923]
[1773540123802,0.56968652,2097.1,2095.8,41.37408923]
[1773540124404,0.56968652,2097.0,2095.9,0.57408923]
[1773540126203,0.56968652,2097.0,2095.7,0.57959787]
[1773540126403,0.56968652,2097.0,2095.7,41.37959787]
[1773540127101,0.56968652,2097.0,2095.8,0.57408923]
[1773540129196,0.56968652,2097.0,2095.7,0.00550864]
[1773540129404,0.56968652,2097.0,2095.7,0.57959787]
[1773540130608,0.56968652,2096.8,2095.7,0.00550864]
[1773540134413,0.56968652,2096.7,2095.7,0.00550864]
[1773540134711,0.56968652,2096.5,2095.4,0.57408923]
[1773540135305,0.56968652,2096.3,2095.1,0.57408923]
[1773540135815,0.56968652,2096.3,2095.1,0.58026117]
[1773540136914,0.56968652,2096.2,2095.1,0.58026117]
[1773540138522,0.56968652,2096.2,2095.2,0.57408923]
[1773540142416,0.56968652,2096.2,2095.3,0.58278971]
[1773540144413,0.573711,2096.5,2095.3,0.58278971]
[1773540146218,0.573711,2096.5,2095.4,0.58278971]
[1773540150220,0.573711,2096.4,2095.4,0.58278971]
[1773540150421,0.573711,2096.4,2095.3,0.58278971]
[1773540151119,0.573711,2096.8,2095.9,0.58278971]
[1773540154726,0.573711,2096.8,2095.8,0.58278971]
[1773540156127,0.573711,2096.7,2095.6,0.58278971]
[1773540158237,0.573711,2096.5,2095.4,6.52538425]
[1773540158533,0.573711,2096.4,2095.4,0.58278971]
[1773540159732,0.573711,2096.4,2095.2,0.58278971]
[1773540161122,0.573711,2096.3,2095.2,0.58278971]
[1773540163030,0.573711,2096.4,2095.3,0.58278971]
[1773540164533,0.573711,2096.3,2095.3,0.58278971]
[1773540170638,0.5699605,2096.2,2095.3,0.58278971]
[1773540170837,0.5699605,2096.4,2095.3,0.58278971]
[1773540171044,0.5699605,2096.4,2095.4,0.58427443]
[1773540171940,0.5699605,2096.4,2095.5,0.54854234]
[1773540173235,6.0961052,2096.6,2095.5,0.54854234]
[1773540173436,0.54637129,2096.7,2095.5,0.54854234]
[1773540173747,0.54637129,2096.7,2095.7,0.54854234]
[1773540174241,0.54637129,2096.6,2095.7,0.54854234]
[1773540174644,0.54637129,2096.9,2095.8,8.03430165]
[1773540174842,0.54637129,2096.9,2095.9,0.54854234]
[1773540176143,0.54637129,2096.9,2095.9,8.03430165]
[1773540176344,0.54637129,2096.9,2096.0,0.54854234]
[1773540180551,0.54637129,2096.8,2095.5,0.51254861]
[1773540182046,0.54637129,2096.7,2095.5,0.51254861]
[1773540182349,5.73372692,2097.2,2096.3,0.28086792]
[1773540182547,7.40952424,2098.0,2096.9,0.2808618]
[1773540182548,0.54637129,2098.0,2096.9,0.2808618]
[1773540182852,0.54637129,2099.2,2097.9,0.27452668]
[1773540183147,6.09296,2100.3,2097.6,5.86231]
[1773540183148,0.54637129,2100.0,2098.5,0.27452668]
[1773540183343,0.54637129,2099.9,2098.6,0.27452668]
[1773540183546,0.54637129,2099.7,2098.6,0.27793016]
[1773540184141,0.54637129,2098.9,2097.6,0.54854234]
[1773540184347,0.54637129,2098.8,2097.4,0.54854234]
[1773540184651,0.54637129,2098.6,2097.4,0.54854234]
[1773540184849,0.54637129,2098.3,2097.0,0.52588181]
[1773540185051,0.54637129,2098.9,2097.0,0.52588181]
[1773540185247,0.54637129,2098.5,2097.0,0.52588181]
[1773540185448,0.55234327,2098.5,2097.0,0.53129677]
[1773540185647,0.54637129,2098.3,2097.0,0.53129677]
[1773540186448,0.54637129,2098.1,2097.0,0.53129677]
[1773540186648,0.54637129,2098.1,2097.0,0.00541496]
[1773540186943,0.54637129,2097.5,2096.7,0.50671662]
[1773540187550,0.54637129,2097.5,2096.6,41.30214058]
[1773540187953,0.54637129,2097.5,2096.6,41.30699266]
[1773540188149,5.53859769,2097.5,2096.6,40.80485208]
[1773540188352,0.54637129,2097.4,2096.6,40.80485208]
[1773540189150,0.54637129,2097.2,2096.6,0.00485208]
[1773540189755,0.54637129,2097.1,2096.6,0.00485208]
[1773540190052,0.54637129,2097.1,2096.1,0.52866315]
[1773540190452,0.54637129,2097.2,2096.1,0.52866315]
[1773540190652,0.54637129,2097.2,2096.3,0.52894958]
[1773540191053,0.54637129,2097.0,2096.3,0.00446269]
[1773540191349,0.55145201,2097.0,2095.7,0.5294691]
[1773540191551,0.54637129,2096.7,2095.3,0.52489277]
[1773540192058,0.54637129,2096.3,2095.4,40.8]
[1773540192252,0.54637129,2096.3,2095.4,0.00344397]
[1773540192554,0.54637129,2096.0,2095.4,0.00344397]
[1773540193652,6.08496898,2096.0,2095.4,0.00344397]
[1773540193847,0.54637129,2095.9,2095.4,0.00344397]
[1773540194050,0.54637129,2095.9,2095.4,0.53438414]
[1773540194256,8.712,2096.5,2095.4,0.53438414]
[1773540194452,0.54637129,2096.3,2095.4,0.00344397]
[1773540194858,0.54637129,2095.9,2095.1,40.8]
[1773540195356,0.54637129,2095.7,2095.1,40.8]
[1773540195557,0.54637129,2095.7,2094.9,0.52611487]
[1773540195857,0.54637129,2095.6,2094.9,0.51542328]
[1773540196158,0.54637129,2095.6,2094.9,0.00436363]
[1773540196560,0.54637129,2095.6,2094.9,40.80436363]
[1773540196755,0.54637129,2095.5,2094.9,0.00436363]
[1773540197061,0.54637129,2095.5,2094.5,0.50844454]
[1773540197062,0.55146885,2095.5,2094.5,0.50844454]
[1773540197363,0.55146885,2095.5,2094.6,41.30844454]
[1773540197959,0.54637129,2095.4,2094.7,0.50589447]
[1773540198959,0.55146885,2095.5,2094.7,0.50148402]
[1773540199752,0.54637129,2096.3,2094.7,0.50148402]
[1773540199955,0.54637129,2096.2,2094.7,0.50148402]
[1773540200360,0.54637129,2096.1,2094.7,0.50148402]
[1773540200762,0.55117591,2096.1,2094.7,0.50148402]
[1773540200979,0.54637129,2095.7,2094.6,40.80346154]
[1773540201155,0.54637129,2095.7,2094.6,41.29093627]
[1773540201352,0.54637129,2095.2,2094.6,0.00346154]
[1773540202249,5.87143462,2096.1,2094.6,0.56491237]
[1773540202250,0.64083377,2096.0,2094.6,0.56491237]
[1773540202451,0.64083377,2095.8,2094.6,0.56491237]
[1773540202963,0.64083377,2095.5,2094.6,0.56491237]
[1773540203355,0.64083377,2095.4,2094.6,0.56491237]
[1773540203557,0.64083377,2095.4,2094.6,0.00346154]
[1773540204363,0.64083377,2095.4,2094.6,0.55698338]
[1773540204557,0.64083377,2096.0,2094.9,0.54860926]
[1773540204860,0.64083377,2095.9,2094.8,0.54972966]
[1773540205260,0.64083377,2095.5,2094.8,0.54972966]
[1773540207068,0.64083377,2095.4,2094.6,0.00346154]
[1773540207468,5.53859769,2095.3,2094.6,40.80346154]
[1773540207669,0.64083377,2095.2,2094.6,40.80346154]
[1773540207968,6.17943146,2095.2,2094.6,40.80346154]
[1773540208164,0.64083377,2095.2,2094.6,40.80346154]
[1773540208665,6.17943146,2095.1,2094.6,41.32004682]
[1773540208867,0.64083377,2095.1,2094.6,0.00346154]
[1773540209064,0.64083377,2095.0,2094.6,0.00346154]
[1773540209363,0.64083377,2095.0,2094.6,0.51684577]
[1773540209567,6.17943146,2095.0,2094.6,0.51684577]
[1773540209771,6.17943146,2095.0,2094.1,0.51216073]
[1773540209772,0.64083377,2095.0,2094.1,0.51216073]
[1773540210364,0.64083377,2095.6,2094.1,0.51785414]
[1773540210557,0.64083377,2095.5,2094.1,0.51785414]
[1773540210961,0.64083377,2095.2,2094.1,0.51785414]
[1773540211569,0.64083377,2095.0,2094.1,0.51785414]
[1773540212070,0.64083377,2094.9,2094.1,0.51785414]
[1773540213069,0.64083377,2094.8,2094.1,0.51785414]
[1773540213960,0.64083377,2094.8,2094.2,40.8]
[1773540214166,0.64083377,2094.8,2094.2,41.28773039]
[1773540214366,8.153,2095.7,2094.2,41.28773039]
[1773540214367,6.17943146,2094.6,2094.2,41.28773039]
[1773540214571,0.0046727,2094.6,2094.2,41.28297772]
[1773540214771,0.64550647,2094.6,2094.1,0.00569341]
[1773540214972,0.64083377,2094.4,2094.1,0.00569341]
[1773540215263,0.64083377,2094.4,2093.5,24.8763109]
[1773540215471,0.64083377,2094.4,2093.8,0.48411873]
[1773540215867,6.17943146,2094.4,2093.9,41.28054233]
[1773540216068,0.0046727,2094.6,2094.0,0.48054233]
[1773540216271,5.53859769,2094.5,2094.0,0.48054233]
[1773540216667,0.64550647,2094.6,2094.0,0.48054233]
[1773540217267,5.53859769,2094.5,2094.0,0.48054233]
[1773540217662,0.64550647,2094.6,2094.0,0.48054233]
[1773540217868,6.17943146,2094.5,2094.0,0.48054233]
[1773540218068,0.0046727,2094.6,2093.9,40.80471253]
[1773540218069,0.64083377,2094.4,2093.9,40.80471253]
[1773540218273,6.17943146,2094.3,2093.9,40.80471253]
[1773540218476,0.64083377,2094.3,2093.9,41.26511382]
[1773540218782,5.53859769,2094.1,2093.9,41.26511382]
[1773540219481,0.64550647,2094.6,2094.0,0.45591376]
[1773540219986,3.07149076,2094.2,2094.0,0.45591376]
[1773540220382,0.64083377,2094.5,2094.0,0.45591376]
[1773540220682,0.64083377,2094.5,2093.9,40.80471253]
[1773540220873,0.64083377,2094.5,2093.9,41.41865901]
[1773540221073,3.07149076,2094.1,2093.9,41.41865901]
[1773540221381,0.64083377,2094.3,2093.9,41.41865901]
[1773540221682,0.64083377,2094.3,2093.9,40.80471253]
[1773540221882,0.64083377,2094.3,2093.9,41.42852832]
[1773540222083,0.64550647,2094.6,2094.0,0.62381579]
[1773540222479,3.07149076,2094.2,2094.0,0.62381579]
[1773540222683,3.07149076,2094.2,2093.9,45.34363844]
[1773540222882,0.64083377,2094.3,2093.9,45.34363844]
[1773540223083,0.64083377,2094.2,2093.9,40.80471253]
[1773540223382,0.64083377,2094.2,2093.7,6.50663547]
[1773540223383,0.64083377,2094.2,2093.7,3.9203109]
[1773540223580,3.07149076,2093.8,2093.6,3.9203109]
[1773540223888,0.64083377,2094.0,2093.3,0.61410199]
[1773540224184,0.64083377,2093.6,2093.0,6.50211537]
[1773540224487,0.64083377,2093.5,2093.1,40.8]
[1773540224680,0.64083377,2093.5,2093.0,0.00356308]
[1773540225082,3.07149076,2093.2,2093.0,41.47048211]
[1773540225283,0.64083377,2094.2,2093.1,0.66691903]
[1773540225588,0.64083377,2093.7,2093.0,40.80356308]
[1773540225983,2.76144017,2093.2,2093.0,40.80356308]
[1773540226183,0.64083377,2093.5,2093.0,40.80356308]
[1773540226685,2.76144017,2093.1,2093.0,40.80356308]
[1773540226887,0.64083377,2094.3,2093.1,0.66691903]
[1773540227682,0.64083377,2094.3,2093.3,0.66691903]
[1773540227879,0.64574033,2094.3,2093.3,0.66691903]
[1773540228888,0.64574033,2094.3,2093.1,0.66691903]
[1773540229792,0.64574033,2094.3,2093.0,0.00356308]
[1773540230189,0.64574033,2094.3,2093.0,40.80356308]
[1773540230691,0.64574033,2094.3,2093.0,41.74956784]
[1773540230887,0.64574033,2094.3,2093.0,0.94956784]
[1773540231991,0.64574033,2094.3,2093.0,0.00356308]
[1773540235193,0.64574033,2094.3,2093.0,0.90569679]
[1773540237597,9.011,2094.2,2093.0,0.90569679]
[1773540237792,0.87042373,2094.1,2093.0,0.90569679]
[1773540238094,0.87042373,2094.0,2093.0,0.90569679]
[1773540238289,0.87042373,2094.0,2093.0,0.00356308]
[1773540238697,0.87042373,2094.0,2092.5,0.90213371]
[1773540239296,0.87042373,2094.0,2092.6,40.8]
[1773540239596,0.87042373,2094.0,2092.6,41.70717057]
[1773540239797,0.87042373,2094.0,2092.7,0.90213371]
[1773540243095,0.87042373,2093.8,2092.6,0.00503686]
[1773540243295,0.87042373,2093.6,2092.6,0.00503686]
[1773540243596,0.87042373,2093.6,2092.1,0.88524393]
[1773540243597,0.87042373,2093.3,2092.1,0.88524393]
[1773540243792,0.87042373,2093.1,2092.1,0.88524393]
[1773540243992,0.87042373,2093.1,2092.0,40.8]
[1773540244394,0.87042373,2093.1,2091.7,0.89286941]
[1773540244594,0.87042373,2093.1,2091.7,0.89845519]
[1773540244794,0.87042373,2092.9,2091.7,0.89845519]
[1773540248191,0.87042373,2092.7,2091.7,0.89845519]
[1773540248396,0.87042373,2092.6,2091.7,0.89845519]
[1773540248898,0.87042373,2092.6,2091.7,0.00558578]
[1773540250200,0.87042373,2092.5,2091.2,0.87812779]
[1773540250596,0.87042373,2092.5,2091.3,0.8781764]
[1773540251006,0.87042373,2092.5,2091.3,0.88368096]
[1773540252502,0.87042373,2092.5,2091.3,0.88041031]
[1773540252901,0.87042373,2092.3,2091.3,0.88041031]
[1773540253300,0.87042373,2092.5,2091.3,6.76022031]
[1773540253505,0.00562256,2092.7,2091.8,0.86494836]
[1773540254103,0.87604629,2092.7,2091.8,0.86494836]
[1773540255906,0.00562256,2092.7,2091.8,0.86494836]
[1773540257211,0.23876,2093.7,2091.8,0.86494836]
[1773540257212,0.87042373,2093.7,2092.6,0.83181224]
[1773540257512,0.87042373,2093.7,2092.4,0.82641297]
[1773540257807,0.87042373,2093.7,2092.5,0.82074171]
[1773540258216,0.87490566,2093.7,2092.5,0.82074171]
[1773540267013,0.87490566,2093.7,2092.1,0.716755]
[1773540268716,0.78071559,2093.6,2092.1,0.716755]
[1773540269421,0.78071559,2093.5,2091.9,0.7062411]
[1773540269624,0.78071559,2093.5,2091.9,41.5062411]
[1773540270116,0.78071559,2093.3,2092.0,0.70031008]
[1773540277925,0.78071559,2093.3,2092.1,0.65826089]
[1773540279329,0.78071559,2093.3,2092.2,0.65836694]
[1773540282229,0.78071559,2093.3,2092.3,0.65695373]
[1773540291239,0.78071559,2093.3,2092.5,0.70075061]
[1773540293943,0.78071559,2093.3,2092.5,6.58876399]
[1773540294244,0.78071559,2093.3,2092.6,0.68344833]
[1773540296548,0.77552158,2093.6,2092.7,0.66852652]
[1773540296747,0.77552158,2093.6,2092.9,0.66879449]
[1773540297041,0.77552158,2093.6,2092.9,0.67280805]
[1773540297541,0.00448193,2093.7,2092.9,0.67280805]
[1773540297840,0.78000351,2093.7,2093.0,0.66385093]
[1773540299540,0.78000351,2093.7,2093.1,0.6587819]
[1773540300846,0.78000351,2093.7,2093.0,40.8]
[1773540301050,0.78000351,2093.7,2092.9,5.89202694]
[1773540301344,0.78000351,2093.7,2092.9,0.00401356]
[1773540302147,0.78000351,2093.7,2092.5,0.64656996]
[1773540303242,0.78000351,2093.7,2092.5,0.6513993]
[1773540303441,0.78000351,2093.7,2092.5,0.00482934]
[1773540304744,0.77552158,2093.5,2092.5,0.00482934]
[1773540304946,0.77552158,2093.3,2092.5,0.00482934]
[1773540307144,0.77552158,2093.3,2092.4,0.62724737]
[1773540307446,0.77552158,2093.3,2092.5,0.62724737]
[1773540308146,0.77552158,2093.3,2092.5,0.00456073]
[1773540310144,0.77552158,2093.3,2092.2,6.57632101]
[1773540310449,0.77552158,2093.3,2092.1,6.58088174]
[1773540310846,0.77552158,2093.3,2092.4,0.60700451]
[1773540311052,0.00448193,2093.7,2093.0,0.60700451]
[1773540311252,0.00448193,2093.7,2093.0,0.61089073]
[1773540311452,0.77552158,2094.2,2093.1,0.71804253]
[1773540312455,0.78099718,2094.2,2093.1,0.71804253]
[1773540316449,0.77552158,2094.1,2093.1,0.71804253]
[1773540323658,0.77552158,2094.1,2093.3,0.68131461]
[1773540326457,0.77552158,2094.1,2093.1,0.68131461]
[1773540328454,0.77552158,2094.1,2093.0,0.00388622]
[1773540328653,0.77552158,2094.1,2093.0,0.68520083]
[1773540329460,6.21580755,2094.7,2093.3,0.68131461]
[1773540329461,0.70870694,2094.7,2093.3,0.68131461]
[1773540329762,0.70870694,2094.7,2093.7,0.68131461]
[1773540330660,0.71488345,2094.7,2093.7,0.68131461]
[1773540334565,0.71488345,2094.7,2093.9,0.68131461]
[1773540334761,0.00617651,2094.7,2093.9,0.68131461]
[1773540336459,0.70870694,2095.0,2093.9,0.68131461]
[1773540336766,0.70870694,2095.0,2094.1,0.68131461]
[1773540337462,0.71456553,2095.0,2094.1,0.68131461]
[1773540342166,0.71456553,2095.0,2093.9,0.68131461]
[1773540345874,0.71456553,2095.0,2094.1,0.67399845]
[1773540348171,0.71456553,2095.0,2094.2,40.8]
[1773540348376,0.71456553,2095.0,2094.3,0.66034349]
[1773540352281,0.71456553,2095.0,2094.2,40.8]
[1773540352481,0.71456553,2095.0,2094.1,0.62619401]
[1773540358082,0.71456553,2095.0,2094.2,0.62619401]
[1773540358384,0.71456553,2095.0,2094.3,0.62619401]
[1773540361089,0.59709166,2094.5,2094.0,0.62619401]
[1773540361784,0.59709166,2094.5,2093.9,0.62619401]
[1773540362984,0.59709166,2094.7,2094.0,0.62619401]
[1773540363178,0.59709166,2094.7,2094.2,0.62619401]
[1773540363383,0.00585859,2095.0,2094.6,0.62619401]
[1773540363577,0.59709166,2095.3,2094.6,0.62980427]
[1773540364487,0.60222346,2095.3,2094.6,0.62980427]
[1773540365888,0.0051318,2095.3,2094.6,0.62980427]
[1773540366090,3.99952518,2095.8,2094.8,0.62619401]
[1773540366091,0.59709166,2095.8,2094.8,0.62619401]
[1773540366288,0.59709166,2095.8,2094.9,0.62619401]
[1773540367089,0.6019246,2095.8,2094.9,0.62619401]
[1773540367791,0.6019246,2095.8,2095.1,0.62619401]
[1773540370096,0.6019246,2095.8,2095.0,40.8]
[1773540370288,0.6019246,2095.8,2095.0,41.42619401]
[1773540371090,0.6019246,2095.8,2095.0,0.62619401]
[1773540377091,0.6019246,2095.8,2094.9,0.62619401]
[1773540377995,0.6019246,2095.8,2094.8,0.62619401]
[1773540380704,0.59709166,2095.6,2094.6,0.62980427]
[1773540383706,0.00483294,2095.8,2094.6,0.62980427]
[1773540384002,0.57905567,2095.8,2095.0,0.56217712]
[1773540385406,0.00483294,2095.8,2095.0,0.56217712]
[1773540388407,0.00483294,2095.8,2095.1,0.56217712]
[1773540389310,0.57422273,2096.2,2095.1,0.56217712]
[1773540389908,0.57422273,2096.2,2095.2,0.56217712]
[1773540390310,0.5776738,2096.2,2095.2,0.56217712]
[1773540391110,0.5776738,2096.2,2095.3,0.56217712]
[1773540392106,0.5776738,2096.2,2095.1,6.49304568]
[1773540392415,0.5776738,2096.2,2095.1,0.56217712]
[1773540392813,0.57422273,2096.0,2094.9,6.49304568]
[1773540393014,0.57422273,2096.0,2094.8,0.56217712]
[1773540395019,0.57422273,2095.9,2094.8,0.56217712]
[1773540397123,0.57422273,2095.9,2094.6,6.49665594]
[1773540397420,0.57422273,2095.9,2094.7,0.56217712]
[1773540399617,8.576,2095.8,2094.7,0.56217712]
[1773540399821,0.57422273,2095.7,2094.7,0.56217712]
[1773540402024,0.57422273,2095.7,2094.6,0.00361026]
[1773540402228,0.57422273,2095.7,2094.6,0.56578738]
[1773540405534,1.82255769,2095.5,2094.6,0.56578738]
[1773540405724,0.57422273,2095.4,2094.6,0.56578738]
[1773540407022,0.57422273,2095.2,2094.7,0.56217712]
[1773540407228,0.57422273,2095.2,2094.6,0.56578738]
[1773540410235,0.58093719,2095.5,2094.6,0.56578738]
[1773540414938,0.58942338,2095.9,2094.9,0.53926578]
[1773540417538,0.58942338,2095.9,2094.8,4.81694765]
[1773540417736,0.58942338,2095.9,2094.3,5.87157]
[1773540417737,4.23810518,2095.2,2093.9,0.59466305]
[1773540417942,0.22366866,2095.0,2094.1,0.37142166]
[1773540418538,6.41905492,2095.0,2094.1,0.37142166]
[1773540418737,0.58942338,2094.9,2094.1,0.00433657]
[1773540418937,4.58894856,2094.9,2094.1,0.00433657]
[1773540419138,0.58942338,2094.7,2094.1,0.00433657]
[1773540419335,0.593643,2094.7,2094.1,0.00433657]
[1773540420538,0.58942338,2094.6,2094.1,0.00433657]
[1773540421234,0.58942338,2094.6,2094.2,0.56312415]
[1773540421438,0.58942338,2095.3,2094.2,0.53926578]
[1773540421941,0.58942338,2095.2,2094.6,0.53926578]
[1773540422445,0.59300088,2095.2,2094.6,0.55890453]
[1773540422641,0.59300088,2095.2,2094.6,0.53926578]
[1773540422842,0.59300088,2095.2,2094.7,0.55890453]
[1773540423040,0.59300088,2095.2,2094.7,0.53926578]
[1773540423544,0.59300088,2095.2,2094.7,0.55890453]
[1773540424145,0.59300088,2095.2,2094.2,0.53926578]
[1773540424347,0.59300088,2095.2,2094.4,0.53926578]
[1773540424745,0.59300088,2095.2,2094.5,0.01963875]
[1773540425246,0.59300088,2095.2,2094.4,0.53926578]
[1773540425445,0.59300088,2095.2,2094.5,7.43749271]
[1773540426444,0.59300088,2095.2,2094.5,7.97675849]
[1773540426848,0.59300088,2095.2,2094.5,0.54287604]
[1773540428445,0.59300088,2095.2,2094.5,0.53926578]
[1773540429047,0.58942338,2095.1,2094.5,0.53926578]
[1773540429449,0.0035775,2095.2,2094.7,0.53926578]
[1773540429845,0.0035775,2095.2,2094.9,0.53926578]
[1773540430252,0.0035775,2095.2,2094.9,7.97675849]
[1773540430553,6.7167638,2095.4,2095.0,0.53926578]
[1773540430753,0.58942338,2095.3,2094.9,7.43749271]
[1773540430945,0.58942338,2095.3,2095.0,0.01963875]
[1773540431150,6.7167638,2095.4,2095.0,0.53926578]
[1773540431345,6.7167638,2095.4,2095.1,0.01963875]
[1773540431545,6.7167638,2095.4,2095.1,0.55890453]
[1773540431546,6.72289127,2095.4,2095.1,0.55890453]
[1773540431750,6.72289127,2095.4,2095.1,0.01963875]
[1773540432852,0.58942338,2095.3,2095.1,0.01963875]
[1773540433357,0.58942338,2095.3,2095.2,0.01963875]
[1773540433557,0.58942338,2095.3,2095.0,0.53926578]
[1773540433751,0.58942338,2095.3,2094.1,0.24302657]
[1773540433956,0.58942338,2095.3,2094.6,0.541698]